fUST/lending_fUST_20260423
["ID","MTS","AMOUNT","RATE_DAILY","PERIOD"]
[421052224,1776954638532,-432.94598505,0.000186,2]
[421052225,1776954638541,-500.0,0.00018698,2]
[421052226,1776954638550,-385.69946609,0.00018698,2]
[421052227,1776954638559,-5000.0,0.00018698,2]
[421052228,1776954638569,-176.16078932,0.00018699,2]
[421052229,1776954638578,-400.23502311,0.00018699,2]
[421052230,1776954638587,-160.59184316,0.00018699,2]
[421052231,1776954638596,-1995.70475198,0.00018699,2]
[421052232,1776954638605,-1995.70475198,0.00018699,2]
[421052233,1776954638615,-1995.70475198,0.00018699,2]
[421052234,1776954638624,-1995.70475198,0.00018699,2]
[421052235,1776954638632,-1995.70475198,0.00018699,2]
[421052236,1776954638642,-1995.70475198,0.00018699,2]
[421052237,1776954638650,-1995.70475198,0.00018699,2]
[421052238,1776954638659,-1995.70475198,0.00018699,2]
[421052239,1776954638669,-1995.70475198,0.00018699,2]
[421052240,1776954638678,-1995.70475198,0.00018699,2]
[421052241,1776954638687,-1995.70475198,0.00018699,2]
[421052242,1776954638696,-1995.70475198,0.00018699,2]
[421052243,1776954638706,-1995.70475198,0.00018699,2]
[421052244,1776954638716,-1995.70475198,0.00018699,2]
[421052245,1776954638726,-1995.70475198,0.00018699,2]
[421052246,1776954638736,-1995.70475198,0.00018699,2]
[421052247,1776954638745,-1995.70475198,0.00018699,2]
[421052248,1776954638754,-1995.70475198,0.00018699,2]
[421052249,1776954638763,-1995.70475198,0.00018699,2]
[421052250,1776954638772,-1995.70475198,0.00018699,2]
[421052251,1776954638781,-1995.70475198,0.00018699,2]
[421052252,1776954638790,-1995.70475198,0.00018699,2]
[421052253,1776954638800,-2013.84752245,0.00018699,2]
[421052254,1776954638809,-2013.84752245,0.00018699,2]
[421052255,1776954638818,-2013.84752245,0.00018699,2]
[421052256,1776954638827,-2013.84752245,0.00018699,2]
[421052257,1776954638836,-2013.84752245,0.00018699,2]
[421052258,1776954638845,-2013.84752245,0.00018699,2]
[421052259,1776954638854,-2013.84752245,0.00018699,2]
[421052260,1776954638863,-2013.84752245,0.00018699,2]
[421052261,1776954638872,-2013.84752245,0.00018699,2]
[421052262,1776954638881,-2013.84752245,0.00018699,2]
[421052263,1776954638890,-2013.84752245,0.00018699,2]
[421052264,1776954638898,-58935.57780656,0.000187,2]
[421052265,1776954638908,-2233.8377435,0.000187,2]
[421052266,1776954638917,-654640.09622076,0.000187,2]
[421052267,1776954638925,-487.0,0.000187,2]
[421052268,1776954638934,-521.45,0.000187,2]
[421052269,1776954638943,-198.32682197,0.00018799,2]
[421052270,1776954638952,-4464.17105795,0.000188,2]
[421052271,1776954638961,-231.0,0.00018888,2]
[421052272,1776954638970,-2233.8377435,0.000189,2]
[421052273,1776954638979,-167.61797271,0.00018932,2]
[421052274,1776954638993,-500.0,0.00018973,2]
[421052275,1776954639003,-502.35243032,0.00018973,2]
[421052276,1776954639012,-500.0,0.00018973,2]
[421052277,1776954639022,-505.23793997,0.00018973,2]
[421052278,1776954639032,-500.0,0.00018973,2]
[421052279,1776954639041,-4464.17105795,0.00019,2]
[421052280,1776954639051,-505487.70332132,0.00019,2]
[421052281,1776954639064,-1558.0095467,0.00019,2]
[421052282,1776954639075,-198.731272,0.00019,2]
[421052284,1776954639085,-198.731272,0.00019,2]
[421052286,1776954639095,-198.731272,0.00019,2]
[421052288,1776954639105,-198.731272,0.00019,2]
[421052290,1776954639114,-625.914204,0.00019,2]
[421052292,1776954639124,-625.914204,0.00019,2]
[421052294,1776954639134,-625.914204,0.00019,2]
[421052296,1776954639144,-625.914204,0.00019,2]
[421052298,1776954639154,-1710.78607,0.00019,2]
[421052301,1776954639164,-1710.78607,0.00019,2]
[421052303,1776954639173,-1710.78607,0.00019,2]
[421052305,1776954639183,-1710.78607,0.00019,2]
[421052307,1776954639192,-151.0,0.00019,2]
[421052309,1776954639203,-151.0,0.00019,2]
[421052311,1776954639213,-151.0,0.00019,2]
[421052313,1776954639223,-2233.8377435,0.000191,2]
[421052315,1776954639233,-4464.17105795,0.000192,2]
[421052317,1776954639243,-2233.8377435,0.000193,2]
[421052319,1776954639252,-4464.17105795,0.000194,2]
[421052321,1776954639262,-511.14909976,0.00019404,7]
[421052323,1776954639271,-2232.51356141,0.00019414,2]
[421052325,1776954639281,-2233.8377435,0.000195,2]
[421052327,1776954639291,-298.54735706,0.00019521,2]
[421052328,1776954639302,-1000.0,0.00019521,2]
[421052329,1776954639312,-4464.17105795,0.000196,2]
[421052330,1776954639323,-201116.72397205,0.000196,2]
[421052331,1776954639332,-2233.8377435,0.000197,2]
[421052332,1776954639342,-273.01885801,0.00019726,7]
[421052333,1776954639353,-511.14909976,0.000198,7]
[421052334,1776954639362,-458.0,0.00019843,2]
[421052335,1776954639372,-321.733,0.000199,2]
[421052336,1776954639382,-511.14909976,0.00019918,7]
[421052338,1776954639392,-511.14909976,0.00019918,7]
[421052340,1776954639402,-2827.0,0.0002,7]
[421052342,1776954639412,-862.0,0.0002,2]
[421052344,1776954639422,-1000.0,0.0002,20]
[421052346,1776954639432,-45600.0,0.0002,12]
[421052348,1776954639441,-10000.0,0.0002,2]
[421052350,1776954639451,-300.0,0.0002,2]
[421052352,1776954639461,-217.0,0.0002,2]
[421052354,1776954639471,-257.0,0.0002,2]
[421052356,1776954639480,-1500.0,0.00020068,2]
[421052358,1776954639490,-151.5,0.00020326,2]
[421052360,1776954639500,-151.5,0.00020326,2]
[421052362,1776954639510,-197.0,0.00020326,2]
[421052364,1776954639520,-177.01707306,0.00020326,2]
[421052366,1776954639530,-500.0,0.00020326,2]
[421052368,1776954639540,-500.0,0.00020326,2]
[421052370,1776954639550,-151.5,0.00020326,2]
[421052372,1776954639559,-500.0,0.00020326,2]
[421052374,1776954639569,-151.5,0.00020326,2]
[421052376,1776954639578,-500.0,0.00020326,2]
[421052378,1776954639587,-151.5,0.00020326,2]
[421052380,1776954639598,-196.96533073,0.00020326,2]
[421052382,1776954639607,-291.3455974,0.00020326,2]
[421052384,1776954639618,-11831.7320525,0.00020545,2]
[421052386,1776954639628,-355.4870462,0.00020545,2]
[421052388,1776954639637,-358.0160056,0.00020545,2]
[421052390,1776954639646,-7558.6759866,0.00020545,2]
[421052392,1776954639656,-151.0,0.00020545,2]
[421052394,1776954639665,-151.0,0.00020545,2]
[421052397,1776954639675,-151.0,0.00020545,2]
[421052399,1776954639685,-297.458208,0.00020545,2]
[421052400,1776954639694,-297.458208,0.00020545,2]
[421052402,1776954639704,-297.458208,0.00020545,2]
[421052404,1776954639714,-297.458208,0.00020545,2]
[421052406,1776954639723,-5000.0,0.00020545,2]
[421052408,1776954639733,-5000.0,0.00020545,2]
[421052411,1776954639742,-5000.0,0.00020545,2]
[421052414,1776954639752,-1841.521922,0.00020545,2]
[421052415,1776954639762,-151.0,0.00020545,2]
[421052417,1776954639772,-151.0,0.00020545,2]
[421052419,1776954639781,-198.731272,0.00020545,2]
[421052421,1776954639791,-198.731272,0.00020545,2]
[421052424,1776954639801,-198.731272,0.00020545,2]
[421052426,1776954639810,-198.731272,0.00020545,2]
[421052428,1776954639820,-625.914204,0.00020545,2]
[421052430,1776954639830,-625.914204,0.00020545,2]
[421052432,1776954639839,-625.914204,0.00020545,2]
[421052434,1776954639850,-625.914204,0.00020545,2]
[421052436,1776954639859,-1710.78607,0.00020545,2]
[421052438,1776954639869,-1710.78607,0.00020545,2]
[421052440,1776954639879,-1710.78607,0.00020545,2]
[421052442,1776954639889,-1710.78607,0.00020545,2]
[421052444,1776954639898,-151.0,0.00020545,2]
[421052446,1776954639908,-151.0,0.00020545,2]
[421052448,1776954639917,-151.0,0.00020545,2]
[421052450,1776954639927,-2258.08240532,0.000206,2]
[421052452,1776954639937,-1000.9160944,0.000206,2]
[421052454,1776954639946,-492.73186306,0.000206,2]
[421052456,1776954639956,-1638.19562832,0.00020616,2]
[421052458,1776954639965,-300.0,0.00020696,2]
[421052460,1776954639975,-155.0,0.00020699,2]
[421052462,1776954639985,-461.34977,0.000207,2]
[421052464,1776954639994,-461.34977,0.000207,2]
[421052466,1776954640004,-461.34977,0.000207,2]
[421052468,1776954640013,-461.34977,0.000207,2]
[421052470,1776954640023,-461.34977,0.000207,2]
[421052472,1776954640032,-461.34977,0.000207,2]
[421052474,1776954640041,-461.34977,0.000207,2]
[421052476,1776954640051,-461.34977,0.000207,2]
[421052478,1776954640060,-151.0,0.000207,2]
[421052479,1776954640069,-151.0,0.000207,2]
[421052481,1776954640078,-362.687487,0.000207,2]
[421052484,1776954640088,-362.687487,0.000207,2]
[421052486,1776954640100,-151.0,0.000207,2]
[421052488,1776954640110,-362.687487,0.000207,2]
[421052490,1776954640119,-151.0,0.000207,2]
[421052492,1776954640129,-362.687487,0.000207,2]
[421052494,1776954640139,-151.0,0.000207,2]
[421052496,1776954640148,-151.0,0.000207,2]
[421052498,1776954640159,-362.687487,0.000207,2]
[421052500,1776954640168,-362.687487,0.000207,2]
[421052502,1776954640178,-151.0,0.000207,2]
[421052504,1776954640188,-151.0,0.000207,2]
[421052506,1776954640197,-362.687487,0.000207,2]
[421052508,1776954640207,-362.687487,0.000207,2]
[421052510,1776954640216,-1191.0,0.000207,2]
[421052512,1776954640226,-307.165233,0.000207,2]
[421052514,1776954640236,-307.165233,0.000207,2]
[421052516,1776954640245,-307.165233,0.000207,2]
[421052518,1776954640255,-307.165233,0.000207,2]
[421052520,1776954640264,-304.0,0.000207,2]
[421052522,1776954640274,-304.0,0.000207,2]
[421052524,1776954640284,-304.0,0.000207,2]
[421052526,1776954640293,-304.0,0.000207,2]
[421052528,1776954640303,-180.545328,0.000207,2]
[421052530,1776954640312,-151.0,0.000207,2]
[421052532,1776954640322,-150.0,0.00020737,2]
[421052534,1776954640333,-445.202766,0.00020784,2]
[421052536,1776954640342,-537.6845,0.00020784,2]
[421052538,1776954640353,-265.02167089,0.00020784,2]
[421052540,1776954640362,-332.32103323,0.00020784,2]
[421052542,1776954640373,-2150.738,0.00020784,2]
[421052544,1776954640383,-501.90320551,0.00020811,2]
[421052546,1776954640392,-152.0,0.00020837,7]
[421052548,1776954640401,-557.5788265,0.00020839,2]
[421052550,1776954640411,-500.0,0.00020867,2]
[421052552,1776954640421,-258.0,0.00020888,2]
[421052554,1776954640431,-578.20924308,0.00020894,2]
[421052556,1776954640441,-500.0,0.000209,2]
[421052558,1776954640451,-1409.0,0.00020907,2]
[421052560,1776954640460,-645.0,0.00020907,2]
[421052562,1776954640470,-2210.0,0.00020907,2]
[421052565,1776954640481,-179.009,0.00020907,2]
[421052567,1776954640491,-184.0,0.00020907,2]
[421052569,1776954640500,-441.0,0.00020907,2]
[421052571,1776954640510,-599.60298507,0.00020949,2]
[421052573,1776954640520,-500.0,0.00020973,2]
[421052575,1776954640529,-337.38238435,0.00020973,2]
[421052577,1776954640539,-500.0,0.00020973,2]
[421052579,1776954640548,-500.0,0.00020973,2]
[421052581,1776954640558,-166.18895166,0.00020973,2]
[421052583,1776954640567,-1191.0,0.00020974,2]
[421052585,1776954640577,-76625.0,0.00021,30]
[421052587,1776954640586,-160.0,0.00021,15]
[421052589,1776954640596,-160.0,0.00021,15]
[421052591,1776954640606,-160.0,0.00021,20]
[421052593,1776954640616,-160.0,0.00021,20]
[421052595,1776954640625,-271.0,0.00021,2]
[421052597,1776954640636,-157.0,0.00021,2]
[421052599,1776954640645,-862.0,0.00021,2]
[421052601,1776954640655,-600.0,0.00021,2]
[421052603,1776954640664,-151.0,0.00021,2]
[421052605,1776954640674,-362.687487,0.00021,2]
[421052607,1776954640683,-151.0,0.00021,2]
[421052610,1776954640693,-362.687487,0.00021,2]
[421052612,1776954640703,-151.0,0.00021,2]
[421052614,1776954640712,-362.687487,0.00021,2]
[421052616,1776954640721,-240.0,0.00021,2]
[421052618,1776954640731,-362.687487,0.00021,2]
[421052620,1776954640741,-307.165233,0.00021,2]
[421052622,1776954640751,-307.165233,0.00021,2]
[421052624,1776954640760,-307.165233,0.00021,2]
[421052626,1776954640769,-307.165233,0.00021,2]
[421052628,1776954640779,-304.0,0.00021,2]
[421052630,1776954640789,-304.0,0.00021,2]
[421052632,1776954640798,-304.0,0.00021,2]
[421052634,1776954640809,-304.0,0.00021,2]
[421052636,1776954640819,-157.350962,0.00021,2]
[421052638,1776954640828,-151.0,0.00021,2]
[421052640,1776954640840,-151.0,0.00021,2]
[421052642,1776954640851,-151.596944,0.00021,2]
[421052644,1776954640860,-300.0,0.00021,2]
[421052646,1776954640870,-297.458208,0.00021,2]
[421052648,1776954640879,-297.458208,0.00021,2]
[421052650,1776954640888,-297.458208,0.00021,2]
[421052652,1776954640898,-297.458208,0.00021,2]
[421052654,1776954640907,-217.0,0.00021,2]
[421052656,1776954640916,-151.0,0.00021,2]
[421052658,1776954640926,-151.0,0.00021,2]
[421052661,1776954640935,-198.731272,0.00021,2]
[421052662,1776954640945,-198.731272,0.00021,2]
[421052665,1776954640955,-198.731272,0.00021,2]
[421052667,1776954640964,-198.731272,0.00021,2]
[421052669,1776954640974,-625.914204,0.00021,2]
[421052671,1776954640983,-625.914204,0.00021,2]
[421052673,1776954640993,-625.914204,0.00021,2]
[421052675,1776954641003,-625.914204,0.00021,2]
[421052677,1776954641012,-1710.78607,0.00021,2]
[421052679,1776954641022,-1710.78607,0.00021,2]
[421052681,1776954641032,-1710.78607,0.00021,2]
[421052683,1776954641041,-1710.78607,0.00021,2]
[421052685,1776954641051,-151.0,0.00021,2]
[421052687,1776954641060,-151.0,0.00021,2]
[421052689,1776954641069,-151.0,0.00021,2]
[421052691,1776954641079,-257.0,0.00021,2]
[421052693,1776954641088,-621.78829552,0.00021004,2]
[421052695,1776954641098,-644.79446246,0.00021059,2]
[421052697,1776954641107,-668.65185757,0.00021114,2]
[421052699,1776954641116,-693.3919763,0.00021169,2]
[421052701,1776954641127,-200.0,0.000212,3]
[421052703,1776954641136,-200.0,0.000212,10]
[421052705,1776954641146,-719.04747942,0.00021224,2]
[421052707,1776954641155,-167.61797272,0.00021229,2]
[421052709,1776954641164,-1191.0,0.00021248,2]
[421052711,1776954641173,-745.65223616,0.00021279,2]
[421052712,1776954641183,-250.0,0.00021285,2]
[421052715,1776954641193,-160.0,0.00021312,2]
[421052717,1776954641202,-4460.052259,0.00021312,2]
[421052719,1776954641212,-8760.104519,0.00021312,2]
[421052721,1776954641221,-461.67526834,0.00021332,2]
[421052723,1776954641231,-2230.315306,0.00021332,2]
[421052725,1776954641240,-773.2413689,0.00021334,2]
[421052727,1776954641250,-2275.35,0.0002137,2]
[421052729,1776954641259,-801.85129955,0.00021389,2]
[421052731,1776954641269,-213.45679014,0.00021412,2]
[421052733,1776954641279,-213.45679012,0.00021412,2]
[421052735,1776954641288,-213.45679012,0.00021412,2]
[421052737,1776954641297,-1048.32970836,0.00021415,2]
[421052739,1776954641307,-831.51979763,0.00021444,2]
[421052741,1776954641317,-500.0,0.00021512,2]
[421052743,1776954641327,-500.0,0.00021512,2]
[421052745,1776954641336,-1000.0,0.00021521,2]
[421052747,1776954641346,-1000.0,0.00021521,2]
[421052749,1776954641356,-1000.0,0.00021521,2]
[421052751,1776954641366,-1191.0,0.00021522,2]
[421052753,1776954641376,-444.216692,0.00021538,7]
[421052755,1776954641386,-455.0307826,0.00021719,2]
[421052757,1776954641396,-151.0,0.00021747,2]
[421052759,1776954641406,-151.0,0.00021747,2]
[421052761,1776954641415,-9788.1044704,0.00021747,2]
[421052763,1776954641425,-5000.0,0.00021747,2]
[421052765,1776954641435,-5000.0,0.00021747,2]
[421052787,1776954641617,-5000.0,0.00021747,2]
[421052791,1776954641655,-5000.0,0.00021747,2]
[421052793,1776954641665,-1120.89653758,0.0002176,2]
[421052795,1776954641674,-600.0,0.00021768,2]
[421052797,1776954641684,-151.0,0.00021794,2]
[421052799,1776954641694,-151.0,0.00021794,2]
[421052801,1776954641704,-455.8385479,0.00021794,2]
[421052803,1776954641713,-1191.0,0.00021796,2]
[421052805,1776954641723,-297.458208,0.00021796,2]
[421052807,1776954641732,-297.458208,0.00021796,2]
[421052809,1776954641742,-297.458208,0.00021796,2]
[421052811,1776954641751,-297.458208,0.00021796,2]
[421052813,1776954641761,-350.0,0.00021833,2]
[421052815,1776954641770,-478.75725327,0.0002188,2]
[421052817,1776954641779,-2312.83697232,0.0002188,2]
[421052819,1776954641788,-461.34977,0.00021895,2]
[421052821,1776954641798,-461.34977,0.00021895,2]
[421052823,1776954641806,-461.34977,0.00021895,2]
[421052825,1776954641816,-461.34977,0.00021895,2]
[421052827,1776954641826,-151.0,0.00021918,2]
[421052829,1776954641835,-264.883319,0.00021918,2]
[421052831,1776954641845,-300.0,0.00021918,2]
[421052832,1776954641856,-198.731272,0.00021962,2]
[421052834,1776954641865,-198.731272,0.00021962,2]
[421052836,1776954641874,-198.731272,0.00021962,2]
[421052838,1776954641884,-198.731272,0.00021962,2]
[421052840,1776954641893,-625.914204,0.00021962,2]
[421052842,1776954641902,-625.914204,0.00021962,2]
[421052844,1776954641912,-625.914204,0.00021962,2]
[421052847,1776954641921,-625.914204,0.00021962,2]
[421052849,1776954641931,-1710.78607,0.00021962,2]
[421052851,1776954641940,-1710.78607,0.00021962,2]
[421052853,1776954641949,-1710.78607,0.00021962,2]
[421052855,1776954641958,-1710.78607,0.00021962,2]
[421052857,1776954641967,-151.0,0.00021962,2]
[421052859,1776954641977,-151.0,0.00021962,2]
[421052861,1776954641987,-289.017542,0.00021962,2]
[421052863,1776954641996,-151.0,0.00021972,2]
[421052865,1776954642005,-155.0,0.00021978,2]
[421052866,1776954642014,-154.54117095,0.00021978,2]
[421052868,1776954642024,-340.0,0.00021978,2]
[421052870,1776954642033,-340.0,0.00021978,2]
[421052872,1776954642043,-340.0,0.00021978,2]
[421052874,1776954642052,-340.0,0.00021978,2]
[421052875,1776954642062,-340.0,0.00021978,2]
[421052876,1776954642072,-340.0,0.00021978,2]
[421052877,1776954642081,-340.0,0.00021978,2]
[421052878,1776954642091,-340.0,0.00021978,2]
[421052879,1776954642101,-340.0,0.00021978,2]
[421052880,1776954642110,-340.0,0.00021978,2]
[421052881,1776954642119,-340.0,0.00021978,2]
[421052882,1776954642128,-340.0,0.00021978,2]
[421052883,1776954642138,-340.0,0.00021978,2]
[421052884,1776954642147,-340.0,0.00021978,2]
[421052885,1776954642157,-340.0,0.00021978,2]
[421052886,1776954642166,-340.0,0.00021978,2]
[421052887,1776954642176,-340.0,0.00021978,2]
[421052888,1776954642185,-340.0,0.00021978,2]
[421052889,1776954642195,-340.0,0.00021978,2]
[421052890,1776954642206,-340.0,0.00021978,2]
[421052891,1776954642215,-340.0,0.00021978,2]
[421052892,1776954642224,-340.0,0.00021978,2]
[421052893,1776954642234,-340.0,0.00021978,2]
[421052894,1776954642243,-340.0,0.00021978,2]
[421052895,1776954642252,-340.0,0.00021978,2]
[421052896,1776954642263,-340.0,0.00021978,2]
[421052897,1776954642272,-340.0,0.00021978,2]
[421052898,1776954642281,-340.0,0.00021978,2]
[421052899,1776954642291,-340.0,0.00021978,2]
[421052900,1776954642300,-340.0,0.00021978,2]
[421052901,1776954642309,-340.0,0.00021978,2]
[421052902,1776954642319,-340.0,0.00021978,2]
[421052903,1776954642328,-340.0,0.00021978,2]
[421052904,1776954642337,-340.0,0.00021978,2]
[421052905,1776954642346,-340.0,0.00021978,2]
[421052906,1776954642356,-340.0,0.00021978,2]
[421052907,1776954642366,-340.0,0.00021978,2]
[421052909,1776954642376,-340.0,0.00021978,2]
[421052911,1776954642385,-340.0,0.00021978,2]
[421052913,1776954642394,-340.0,0.00021978,2]
[421052915,1776954642404,-340.0,0.00021978,2]
[421052917,1776954642413,-340.0,0.00021978,2]
[421052919,1776954642422,-340.0,0.00021978,2]
[421052921,1776954642431,-340.0,0.00021978,2]
[421052923,1776954642441,-340.0,0.00021978,2]
[421052925,1776954642450,-340.0,0.00021978,2]
[421052927,1776954642459,-340.0,0.00021978,2]
[421052929,1776954642469,-340.0,0.00021978,2]
[421052931,1776954642478,-340.0,0.00021978,2]
[421052933,1776954642487,-340.0,0.00021978,2]
[421052934,1776954642496,-340.0,0.00021978,2]
[421052936,1776954642506,-340.0,0.00021978,2]
[421052939,1776954642516,-340.0,0.00021978,2]
[421052941,1776954642525,-340.0,0.00021978,2]
[421052944,1776954642535,-340.0,0.00021978,2]
[421052947,1776954642544,-340.0,0.00021978,2]
[421052949,1776954642554,-340.0,0.00021978,2]
[421052952,1776954642564,-340.0,0.00021978,2]
[421052954,1776954642574,-340.0,0.00021978,2]
[421052958,1776954642584,-340.0,0.00021978,2]
[421052960,1776954642593,-340.0,0.00021978,2]
[421052962,1776954642603,-340.0,0.00021978,2]
[421052964,1776954642613,-340.0,0.00021978,2]
[421052966,1776954642623,-340.0,0.00021978,2]
[421052968,1776954642632,-340.0,0.00021978,2]
[421052971,1776954642642,-340.0,0.00021978,2]
[421052973,1776954642651,-340.0,0.00021978,2]
[421052975,1776954642661,-340.0,0.00021978,2]
[421052977,1776954642671,-340.0,0.00021978,2]
[421052979,1776954642680,-340.0,0.00021978,2]
[421052981,1776954642690,-340.0,0.00021978,2]
[421052984,1776954642700,-340.0,0.00021978,2]
[421052987,1776954642709,-340.0,0.00021978,2]
[421052990,1776954642718,-340.0,0.00021978,2]
[421052992,1776954642729,-340.0,0.00021978,2]
[421052994,1776954642738,-374.24813214,0.00021978,2]
[421052996,1776954642747,-307.165233,0.00021978,2]
[421052998,1776954642756,-307.165233,0.00021978,2]
[421053000,1776954642766,-307.165233,0.00021978,2]
[421053002,1776954642775,-307.165233,0.00021978,2]
[421053004,1776954642784,-304.0,0.00021978,2]
[421053006,1776954642793,-304.0,0.00021978,2]
[421053008,1776954642803,-304.0,0.00021978,2]
[421053010,1776954642812,-304.0,0.00021978,2]
[421053012,1776954642824,-151.0,0.00021978,2]
[421053014,1776954642833,-151.0,0.00021978,2]
[421053016,1776954642842,-151.0,0.00021978,2]
[421053018,1776954642853,-151.0,0.00021978,2]
[421053020,1776954642862,-271.0,0.00022,2]
[421053022,1776954642872,-157.0,0.00022,2]
[421053024,1776954642881,-862.0,0.00022,2]
[421053026,1776954642891,-300.0,0.00022,2]
[421053028,1776954642900,-217.0,0.00022,2]
[421053029,1776954642908,-257.0,0.00022,2]
[421053031,1776954642917,-151.0,0.00022008,2]
[421053033,1776954642926,-362.687487,0.00022008,2]
[421053035,1776954642935,-151.0,0.00022008,2]
[421053037,1776954642945,-362.687487,0.00022008,2]
[421053039,1776954642954,-151.0,0.00022008,2]
[421053041,1776954642963,-362.687487,0.00022008,2]
[421053043,1776954642973,-362.687487,0.00022008,2]
[421053045,1776954642982,-151.0,0.00022026,2]
[421053048,1776954642992,-151.00000001,0.0002205,60]
[421053049,1776954643001,-1418.95751326,0.00022068,2]
[421053051,1776954643010,-818.09489962,0.00022068,2]
[421053053,1776954643019,-1500.0,0.00022068,2]
[421053055,1776954643028,-1191.0,0.0002207,5]
[421053057,1776954643039,-1000.0,0.000221,2]
[421053059,1776954643048,-260.0,0.00022192,4]
[421053061,1776954643057,-10000.0,0.00022204,2]
[421053063,1776954643067,-242.042,0.00022259,2]
[421053065,1776954643076,-151.0,0.00022311,30]
[421053067,1776954643086,-600.0,0.00022337,10]
[421053069,1776954643094,-1191.0,0.00022344,5]
[421053072,1776954643105,-160.0,0.0002235,3]
[421053074,1776954643115,-160.67677147,0.0002235,5]
[421053076,1776954643124,-160.0,0.0002235,5]
[421053078,1776954643134,-9122.834167,0.00022378,14]
[421053080,1776954643144,-250.26160094,0.00022381,2]
[421053081,1776954643155,-2859.84392202,0.00022421,2]
[421053084,1776954643164,-496.47127164,0.00022428,2]
[421053085,1776954643175,-2398.4119403,0.00022428,2]
[421053088,1776954643184,-461.34977,0.00022457,2]
[421053090,1776954643194,-461.34977,0.00022457,2]
[421053091,1776954643203,-461.34977,0.00022457,2]
[421053093,1776954643212,-461.34977,0.00022457,2]
[421053095,1776954643221,-1832.5261404,0.00022457,2]
[421053097,1776954643230,-305.43769007,0.00022484,30]
[421053099,1776954643239,-1044.21588734,0.000225,2]
[421053101,1776954643248,-305.43769007,0.0002251,30]
[421053103,1776954643257,-200.020688,0.00022521,2]
[421053105,1776954643266,-362.687487,0.00022521,2]
[421053107,1776954643276,-151.0,0.00022521,2]
[421053109,1776954643286,-362.687487,0.00022521,2]
[421053111,1776954643296,-151.0,0.00022521,2]
[421053113,1776954643305,-362.687487,0.00022521,2]
[421053115,1776954643315,-362.687491,0.00022521,2]
[421053117,1776954643324,-307.165233,0.00022521,2]
[421053119,1776954643333,-307.165233,0.00022521,2]
[421053121,1776954643342,-307.165233,0.00022521,2]
[421053123,1776954643351,-307.165233,0.00022521,2]
[421053125,1776954643360,-304.0,0.00022521,2]
[421053127,1776954643370,-304.0,0.00022521,2]
[421053129,1776954643379,-304.0,0.00022521,2]
[421053131,1776954643389,-304.0,0.00022521,2]
[421053133,1776954643399,-151.0,0.00022521,2]
[421053135,1776954643408,-151.0,0.00022521,2]
[421053137,1776954643418,-1139128.55012745,0.00022522,2]
[421053139,1776954643435,-20329.54696089,0.00022522,2]
[421053142,1776954643447,-12211.37541004,0.00022522,2]
[421053144,1776954643459,-313303.86193181,0.00022522,2]
[421053146,1776954643471,-5818.31215015,0.00022522,2]
[421053152,1776954643515,-688.0,0.000181,2]
[421053154,1776954643525,-1100.92292671,0.00022522,2]
[421053170,1776954643676,-141.55780298,0.00020329,2]
[421053452,1776954646618,-150.0,0.00020039,2]
[421053453,1776954646629,-2090.95575843,0.00020329,2]
[421053454,1776954646638,-160.0,0.00021312,2]